bitfinex-derivatives/quotes_ETHF0:USTF0_20250524
["timestamp","ask_amount","ask_price","bid_price","bid_amount"]
[1748088048366,33.78784,2563.9,2563.8,2.11477]
[1748088048566,33.78784,2563.9,2563.8,1.3349]
[1748088050066,33.78784,2563.9,2563.8,1.9983]
[1748088051671,33.78784,2563.9,2563.7,3.2078]
[1748088051672,0.77987,2563.8,2563.7,3.2078]
[1748088051872,2.14207,2563.8,2563.7,3.2078]
[1748088052074,0.7799,2563.7,2563.6,0.64924431]
[1748088052274,0.7799,2563.7,2563.6,0.00584431]
[1748088052275,2.0933,2563.7,2563.6,0.00584431]
[1748088052475,2.7749,2563.7,2563.6,0.00584431]
[1748088054973,2.0933,2563.7,2563.6,0.00584431]
[1748088055173,33.7859,2563.7,2563.6,0.00584431]
[1748088055369,33.006,2563.7,2563.6,0.78575431]
[1748088055576,33.7859,2563.7,2563.6,1.32864431]
[1748088056973,4.5599,2563.9,2563.6,1.32864431]
[1748088056974,0.77989,2563.8,2563.6,1.32864431]
[1748088057180,3.98765,2563.9,2563.7,1.3554]
[1748088057383,3.98765,2563.9,2563.8,1.3228]
[1748088057686,37.05965,2563.9,2563.8,1.3228]
[1748088057884,3.2078,2563.9,2563.8,2.10267]
[1748088058188,0.78562431,2564.1,2564.0,0.77981]
[1748088058378,33.85762431,2564.1,2564.0,0.77981]
[1748088058682,33.07784431,2564.1,2564.0,0.77981]
[1748088059285,33.85762431,2564.1,2564.0,0.77981]
[1748088059674,33.07784431,2564.1,2564.0,0.77981]
[1748088059982,33.85764431,2564.1,2564.0,0.77981]
[1748088060181,0.77981,2564.0,2563.9,2.11902]
[1748088060582,15.52384431,2564.1,2564.0,0.77981]
[1748088060783,33.07784431,2564.1,2564.0,2.11901]
[1748088061585,0.00584431,2564.1,2564.0,2.11901]
[1748088061778,17.55984431,2564.1,2564.0,2.11901]
[1748088062080,0.00584431,2564.1,2564.0,2.11901]
[1748088062278,17.55984431,2564.1,2564.0,2.11901]
[1748088062481,18.33962431,2564.1,2564.0,2.11901]
[1748088062688,18.33962431,2564.1,2564.0,1.3392]
[1748088063089,17.55984431,2564.1,2564.0,2.11901]
[1748088063386,17.55884431,2564.1,2564.0,2.11901]
[1748088064186,18.33862431,2564.1,2564.0,2.11901]
[1748088064389,18.33862431,2564.1,2564.0,1.3392]
[1748088064686,18.33862431,2564.1,2564.0,2.11901]
[1748088065586,18.33862431,2564.1,2564.0,2.19450626]
[1748088065787,18.33862431,2564.1,2564.0,1.41469626]
[1748088065984,19.70802431,2564.1,2564.0,1.41469626]
[1748088066380,33.85362431,2564.1,2564.0,2.19450626]
[1748088066581,33.85362431,2564.1,2564.0,1.41469626]
[1748088066787,0.78562431,2564.1,2564.0,1.41469626]
[1748088067081,33.85362431,2564.1,2564.0,0.07549626]
[1748088068090,34.54692431,2564.1,2564.0,0.07549626]
[1748088068794,34.54692431,2564.1,2564.0,6.26e-06]
[1748088068795,39.54692431,2564.1,2564.0,6.26e-06]
[1748088070791,42.63809254,2564.1,2564.0,6.26e-06]
[1748088071191,0.77987,2563.8,2563.7,0.97430626]
[1748088071390,3.98767,2563.8,2563.7,0.97430626]
[1748088071591,0.7799,2563.7,2563.6,0.00584431]
[1748088071792,0.78005,2563.2,2563.1,1.3414]
[1748088071988,33.85005,2563.2,2563.1,1.3414]
[1748088072994,33.07,2563.2,2563.1,2.12146]
[1748088073493,33.07,2563.2,2563.1,1.3414]
[1748088073893,33.07,2563.2,2563.1,2.12146]
[1748088074389,5.39561,2563.4,2563.2,0.78003]
[1748088074693,15.519,2563.4,2563.3,2.09352]
[1748088074894,33.074,2563.4,2563.3,2.09352]
[1748088076293,33.85399,2563.4,2563.3,1.3135]
[1748088076885,33.85399,2563.4,2563.3,2.09352]
[1748088077088,33.074,2563.4,2563.3,2.09352]
[1748088077692,33.85399,2563.4,2563.3,1.3135]
[1748088079504,33.85399,2563.4,2563.3,2.09352]
[1748088079797,33.85399,2563.4,2563.3,1.38899626]
[1748088080393,35.22899,2563.4,2563.3,1.38899626]
[1748088080988,38.43679,2563.4,2563.3,0.07549626]
[1748088083891,5.36279,2563.4,2563.3,0.07549626]
[1748088084095,38.43879,2563.4,2563.3,0.07549626]
[1748088095606,43.43879,2563.4,2563.3,6.26e-06]
[1748088095810,43.43879,2563.4,2562.5,2.0836]
[1748088095811,0.78023,2562.6,2562.5,2.0836]
[1748088096007,18.33823,2562.6,2562.5,2.0836]
[1748088096211,17.558,2562.6,2562.5,7.86386]
[1748088097411,0.00584431,2562.8,2562.7,0.7802]
[1748088097607,17.56384431,2562.8,2562.6,2.18451]
[1748088097805,18.34401431,2562.8,2562.7,4.6121]
[1748088098420,18.34401431,2562.8,2562.7,1.4043]
[1748088101816,0.78601431,2562.8,2562.7,1.4043]
[1748088102115,18.34501431,2562.8,2562.7,1.4043]
[1748088102314,0.78601431,2562.8,2562.7,1.4043]
[1748088102617,18.34501431,2562.8,2562.7,1.4043]
[1748088106820,0.78601431,2562.8,2562.7,1.4043]
[1748088107024,18.34501431,2562.8,2562.7,1.4043]
[1748088108321,18.34501431,2562.8,2562.7,2.1845]
[1748088108717,0.00584431,2562.8,2562.7,2.1845]
[1748088108923,17.56484431,2562.8,2562.7,2.1845]
[1748088109222,0.00584431,2562.8,2562.7,2.1845]
[1748088109418,17.56484431,2562.8,2562.7,2.25999626]
[1748088110324,18.34501431,2562.8,2562.7,2.25999626]
[1748088110822,0.78601431,2562.8,2562.7,2.25999626]
[1748088111126,18.34501431,2562.8,2562.7,2.25999626]
[1748088111313,17.56484431,2562.8,2562.7,2.25999626]
[1748088113423,0.00584431,2562.8,2562.7,2.25999626]
[1748088113621,2.31784814,2563.2,2563.1,0.78008]
[1748088113819,19.87684814,2563.2,2563.1,0.78008]
[1748088115027,17.559,2563.2,2563.1,0.78008]
[1748088115228,17.559,2563.2,2563.0,2.15609]
[1748088115629,18.33905,2563.2,2563.1,1.376]
[1748088117329,18.33905,2563.2,2563.1,2.15608]
[1748088117930,18.33905,2563.2,2563.1,1.376]
[1748088121132,18.33805,2563.2,2563.1,2.15608]
[1748088121329,0.78005,2563.2,2563.1,1.376]
[1748088121532,18.33805,2563.2,2563.1,1.376]
[1748088121929,0.78011,2563.0,2562.9,3.86664431]
[1748088122136,0.78011,2563.0,2562.9,2.06554431]
[1748088122936,2.13701,2563.0,2562.9,2.06554431]
[1748088123233,2.13701,2563.0,2562.9,1.41254431]
[1748088127440,2.13701,2563.0,2562.9,2.19268431]
[1748088129336,2.13701,2563.0,2562.9,1.41254431]
[1748088130742,2.13701,2563.0,2562.9,0.00584431]
[1748088131240,17.55601,2563.0,2562.9,0.00584431]
[1748088131841,20.76381,2563.0,2562.9,0.00584431]
[1748088133145,25.76381,2563.0,2562.9,0.00584431]
[1748088133333,20.76381,2563.0,2562.9,0.00584431]
[1748088139760,0.78017,2562.8,2562.7,0.3221]
[1748088140450,2.13537,2562.8,2562.7,0.3221]
[1748088142057,2.32287717,2562.9,2562.8,0.78017]
[1748088142258,19.88287717,2562.9,2562.8,1.47507]
[1748088142453,20.66301717,2562.9,2562.8,3.43927]
[1748088144368,18.34014,2562.9,2562.8,3.43927]
[1748088146871,17.56,2562.9,2562.8,3.43927]
[1748088147459,0.81902,2563.2,2563.1,0.78008]
[1748088147665,0.78009,2563.1,2563.0,0.7801]
[1748088148274,0.03895,2563.2,2563.1,0.78008]
[1748088148475,0.03895,2563.2,2563.1,2.17078]
[1748088148767,17.59895,2563.2,2563.1,2.17078]
[1748088149771,0.03895,2563.2,2563.1,2.17078]
[1748088149974,17.59795,2563.2,2563.1,2.17078]
[1748088150168,18.378,2563.2,2563.1,2.17078]
[1748088151175,18.378,2563.2,2563.1,1.3907]
[1748088152772,18.378,2563.2,2563.1,2.17078]
[1748088153776,18.378,2563.2,2563.1,1.3907]
[1748088154378,0.78008,2563.1,2563.0,0.3229]
[1748088154580,0.78008,2563.1,2563.0,1.6032]
[1748088154775,0.78008,2563.1,2563.0,0.3229]
[1748088154979,2.11388,2563.1,2563.0,0.3229]
[1748088156081,7.11388,2563.1,2563.0,0.3229]
[1748088156582,4.43675717,2563.1,2563.0,0.3229]
[1748088156778,9.43675717,2563.1,2563.0,0.3229]
[1748088157379,0.78023,2562.6,2562.5,2.59845771]
[1748088157576,33.62723,2562.6,2562.5,2.59845771]
[1748088159487,0.78026,2562.5,2562.4,1.2982]
[1748088159687,2.18816,2562.5,2562.4,1.2982]
[1748088160388,0.78029,2562.4,2562.3,3.2078]
[1748088160580,2.88179,2562.4,2562.3,3.2078]
[1748088167385,0.78029,2562.5,2562.3,4.5464]
[1748088167691,0.78029,2562.5,2562.4,1.3386]
[1748088167892,33.63329,2562.5,2562.4,1.3386]
[1748088170888,0.78029,2562.5,2562.4,2.11889]
[1748088171089,33.63329,2562.5,2562.4,2.11889]
[1748088171390,0.78029,2562.5,2562.4,2.11889]
[1748088171578,0.78029,2562.5,2562.4,1.3386]
[1748088171579,33.63329,2562.5,2562.4,1.3386]
[1748088177894,0.78029,2562.5,2562.4,1.3386]
[1748088178096,33.63329,2562.5,2562.4,1.3386]
[1748088180295,2.32330488,2562.9,2562.4,6.3386]
[1748088180495,15.284,2562.7,2562.6,0.78022]
[1748088180696,16.0642,2562.7,2562.6,0.6512]
[1748088181002,32.846,2562.7,2562.6,1.43143]
[1748088181294,15.284,2563.0,2562.9,0.78014]
[1748088181495,32.846,2563.0,2562.9,0.78014]
[1748088181701,32.846,2563.0,2562.6,2.0117]
[1748088181895,0.78019,2562.8,2562.7,2.14069]
[1748088182094,0.78019,2562.8,2562.7,1.3605]
[1748088183802,33.62519,2562.8,2562.7,1.3605]
[1748088185204,0.78019,2562.8,2562.7,1.3605]
[1748088185503,33.62519,2562.8,2562.7,1.3605]
[1748088190003,0.78019,2562.8,2562.7,1.3605]
[1748088190203,33.62319,2562.8,2562.7,1.3605]
[1748088190403,0.78019,2562.8,2562.7,1.3605]
[1748088190599,33.62319,2562.8,2562.7,1.3605]
[1748088193713,2.32330488,2563.0,2562.9,0.78014]
[1748088193921,35.94641488,2563.0,2562.9,0.78014]
[1748088194319,0.78015,2562.9,2562.8,0.78015]
[1748088194810,0.78017,2562.8,2562.7,2.14069]
[1748088195011,0.78017,2562.8,2562.7,1.3605]
[1748088195814,0.78017,2562.8,2562.7,2.1407]
[1748088196011,18.34017,2562.8,2562.7,2.1407]
[1748088196912,18.4908,2563.1,2563.0,0.78011]
[1748088197112,36.0508,2563.1,2563.0,0.78011]
[1748088197315,38.37410488,2563.1,2563.0,0.78011]
[1748088197520,23.09110488,2563.1,2563.0,0.78011]
[1748088197722,19.88330488,2563.1,2563.0,2.06681]
[1748088198223,2.32330488,2563.1,2563.0,5.27461]
[1748088198717,2.32914919,2563.4,2563.3,0.78002]
[1748088198921,17.56,2563.6,2563.5,0.77996]
[1748088199324,17.56,2563.6,2563.5,5.77996]
[1748088199526,17.56,2563.6,2563.5,7.09416]
[1748088199816,17.56,2563.6,2563.5,1.3142]
[1748088200025,18.33993,2563.6,2563.5,1.3142]
[1748088200325,0.77999,2563.4,2563.3,0.86247444]
[1748088200621,16.06099,2563.4,2563.3,0.86247444]
[1748088200824,19.26879,2563.4,2563.3,0.86247444]
[1748088201015,20.57529,2563.4,2563.3,0.86247444]
[1748088202223,20.57529,2563.4,2563.3,0.00584431]
[1748088209935,20.57529,2563.4,2563.3,4.31e-06]
[1748088212132,23.66645823,2563.4,2563.3,4.31e-06]
[1748088215935,23.66645823,2563.4,2563.3,5.7e-07]
[1748088216227,41.22545823,2563.4,2563.3,5.7e-07]
[1748088217636,38.17324,2563.4,2563.3,5.7e-07]
[1748088218937,5.33324,2563.4,2563.3,5.7e-07]
[1748088219138,38.17724,2563.4,2563.3,5.7e-07]
[1748088220540,40.50359278,2563.4,2563.3,5.7e-07]
[1748088221235,6.35309278,2563.4,2563.3,5.7e-07]
[1748088221437,39.19709278,2563.4,2563.3,5.7e-07]
[1748088221939,21.63809278,2563.4,2563.3,5.7e-07]
[1748088222140,36.87074,2563.4,2563.3,1.28730057]
[1748088224640,3.24675,2563.4,2563.3,7.06732057]
[1748088224847,0.03895,2563.4,2563.3,10.27512057]
[1748088228147,0.77994,2563.6,2563.5,0.77994]
[1748088228352,0.77996,2563.5,2563.4,2.11598]
[1748088228546,0.77996,2563.5,2563.4,1.336]
[1748088228747,0.77995,2563.6,2563.4,2.11599]
[1748088228948,0.77995,2563.6,2563.5,1.3358]
[1748088229147,0.77995,2563.6,2563.5,2.11576]
[1748088229348,0.77995,2563.6,2563.5,1.3358]
[1748088229555,0.77995,2563.6,2563.5,2.11576]
[1748088229852,0.77995,2563.6,2563.5,1.3358]
[1748088231947,0.77995,2563.6,2563.5,2.11576]
[1748088232149,0.77995,2563.6,2563.5,1.3358]
[1748088232351,0.77995,2563.6,2563.5,2.11576]
[1748088233356,17.557,2563.7,2563.5,1.3358]
[1748088233654,18.3369,2563.7,2563.6,2.6095]
[1748088235153,0.00584431,2563.8,2563.7,0.7799]
[1748088235352,0.00584431,2563.8,2563.7,5.3024]
[1748088235549,0.00584431,2563.8,2563.7,5.2524]
[1748088235749,0.00584431,2563.8,2563.7,2.0446]
[1748088236153,0.78571431,2563.8,2563.7,1.3147]
[1748088236557,0.78571431,2563.8,2563.7,2.0946]
[1748088237656,0.00584431,2563.8,2563.7,2.0946]
[1748088237856,0.78571431,2563.8,2563.7,2.0946]
[1748088238058,0.00584431,2563.8,2563.7,2.0946]
[1748088239652,17.55884431,2563.8,2563.7,5.3024]
[1748088240258,0.00584431,2563.8,2563.7,5.3024]
[1748088240455,0.00584431,2563.8,2563.7,10.3024]
[1748088241154,3.98751,2564.4,2563.7,10.3024]
[1748088241155,3.2078,2564.4,2564.3,0.77972]
[1748088241362,0.77967,2564.5,2564.4,0.77969]
[1748088241658,18.33268,2564.5,2564.4,0.77969]
[1748088242363,0.77972,2564.3,2564.2,2.10322]
[1748088242951,0.77972,2564.3,2564.2,1.3235]
[1748088243960,1.48562,2564.3,2564.2,1.3235]
[1748088244557,0.77984,2563.9,2563.8,2.1089]
[1748088244771,0.77984,2563.9,2563.8,2.75]
[1748088245365,16.5951,2564.1,2563.7,3.28329626]
[1748088245366,0.77987,2563.8,2563.7,3.28329626]
[1748088245561,18.33187,2563.8,2563.7,3.28329626]
[1748088246166,18.33187,2563.8,2563.7,0.07549626]
[1748088247363,0.77993,2563.6,2563.5,0.00584431]
[1748088247670,16.05293,2563.6,2563.5,0.00584431]
[1748088248059,0.78002,2563.3,2563.2,2.59845771]
[1748088248469,33.60502,2563.3,2563.2,2.59845771]
[1748088248665,33.60502,2563.3,2563.1,2.83277]
[1748088248865,32.825,2563.3,2562.9,0.6451]
[1748088249061,2.7043,2563.2,2563.0,0.7801]
[1748088249267,0.78008,2563.1,2563.0,1.3474]
[1748088249461,1.3915,2563.1,2562.9,0.78013]
[1748088249667,0.78015,2562.9,2562.8,3.2078]
[1748088250166,16.05415,2562.9,2562.8,3.2078]
[1748088250558,16.05415,2562.9,2562.8,3.98798]
[1748088250759,16.05415,2562.9,2562.6,1.3474]
[1748088250760,0.78021,2562.7,2562.6,1.3474]
[1748088251466,0.78024,2562.6,2562.5,4.06443013]
[1748088251666,19.02814,2562.6,2562.5,3.2078]
[1748088252659,1.382,2562.8,2562.5,3.2078]
[1748088252862,33.61021,2562.7,2562.5,3.98805]
[1748088253157,33.61021,2562.7,2562.6,1.3116]
[1748088253560,34.99441,2562.7,2562.6,1.3116]
[1748088253957,33.61021,2562.7,2562.6,2.09184]
[1748088254154,1.3842,2563.0,2562.7,0.78021]
[1748088254359,32.831,2562.9,2562.8,2.09916]
[1748088255267,32.833,2562.9,2562.8,2.09918]
[1748088255567,17.556,2562.9,2562.8,5.30698]
[1748088255768,1.48197,2563.2,2563.1,0.78008]
[1748088255769,0.78007,2563.2,2563.1,0.78008]
[1748088255977,32.833,2563.2,2562.8,4.5268]
[1748088256167,1.3842,2563.1,2562.9,0.78013]
[1748088256469,2.1643,2563.1,2563.0,0.78012]
[1748088257573,0.78012,2563.0,2562.9,2.07913]
[1748088257766,2.16431,2563.1,2562.9,1.299]
[1748088258071,2.16431,2563.1,2563.0,0.78012]
[1748088258369,0.78011,2563.1,2563.0,0.78012]
[1748088258570,32.833,2563.2,2562.8,3.2078]
[1748088258769,2.08364,2563.0,2562.8,3.98795]
[1748088258968,2.08364,2563.0,2562.9,0.78015]
[1748088259165,2.08364,2563.0,2562.9,1.299]
[1748088260265,0.78015,2562.9,2562.8,0.07549626]
[1748088260569,2.12145,2562.9,2562.8,0.07549626]
[1748088264773,19.67945,2562.9,2562.8,0.07549626]
[1748088264971,34.95845,2562.9,2562.8,2.26657626]
[1748088265372,16.05915,2562.9,2562.8,2.26657626]
[1748088265576,3.98793,2563.0,2562.9,0.78015]
[1748088265772,36.82493,2563.0,2562.9,2.13075]
[1748088266077,36.82493,2563.0,2562.9,2.81355]
[1748088266276,3.2078,2563.0,2562.9,2.81355]
[1748088266475,32.837,2563.0,2562.9,3.45535]
[1748088267176,0.7801,2563.1,2563.0,0.78011]
[1748088267375,16.0591,2563.1,2563.0,2.13071]
[1748088267577,32.838,2563.1,2563.0,2.13072]
[1748088268174,3.21364431,2563.4,2563.3,0.78002]
[1748088268378,20.77264431,2563.4,2563.3,0.78002]
[1748088268678,0.00584431,2563.4,2563.3,3.98782]
[1748088268983,0.78583431,2563.4,2563.3,3.98782]
[1748088269176,0.00584431,2563.4,2563.3,3.98782]
[1748088269979,15.279,2563.7,2563.6,0.77993]
[1748088270285,32.837,2563.7,2563.6,3.98773]
[1748088270684,15.279,2563.7,2563.6,3.98773]
[1748088270878,32.837,2563.7,2563.6,3.98773]
[1748088271083,15.279,2563.8,2563.7,0.7799]
[1748088271279,0.00584431,2563.9,2563.8,0.77987]
[1748088272075,0.00584431,2563.9,2563.8,5.77987]
[1748088273388,32.906,2564.3,2564.2,0.77975]
[1748088274076,18.45601278,2564.5,2564.3,0.7797]
[1748088274287,18.45601278,2564.5,2564.4,1.368]
[1748088274288,16.12966,2564.5,2564.4,1.368]
[1748088274475,33.68566,2564.5,2564.4,1.368]
[1748088279289,33.68566,2564.5,2564.4,2.14769]
[1748088280083,33.68566,2564.5,2564.4,1.368]
[1748088280891,32.906,2564.5,2564.1,0.6703]
[1748088281188,0.77987,2563.8,2563.7,0.07549626]
[1748088281388,33.67787,2563.8,2563.7,0.07549626]
[1748088281589,33.67787,2563.8,2563.7,0.85539626]
[1748088281786,17.551,2563.8,2563.7,0.07549626]
[1748088281988,17.551,2563.8,2563.7,0.85539626]
[1748088282491,17.551,2563.8,2563.7,2.23019626]
[1748088282793,17.551,2563.8,2563.7,5.43799626]
[1748088282989,0.77979,2564.1,2563.9,0.77982]
[1748088283192,16.12579,2564.1,2564.0,1.3748]
[1748088283386,33.67679,2564.1,2564.0,1.3748]
[1748088286195,32.897,2564.1,2564.0,2.15461]
[1748088286888,33.67678,2564.1,2564.0,2.15461]
[1748088287086,33.67678,2564.1,2564.0,1.3748]
[1748088287492,33.67678,2564.1,2564.0,2.15461]
[1748088287793,33.67678,2564.1,2564.0,1.3748]
[1748088288995,33.67678,2564.1,2564.0,2.15461]
[1748088289497,32.897,2564.1,2564.0,2.15461]
[1748088289794,33.67678,2564.1,2564.0,2.15459]
[1748088290294,32.897,2564.1,2564.0,2.15459]
[1748088291098,32.897,2564.1,2564.0,2.23008626]
[1748088292392,0.77977,2564.2,2564.1,0.77978]
[1748088292597,33.67677,2564.2,2564.1,0.77978]
[1748088292797,33.67677,2564.2,2564.1,1.47778]
[1748088293301,3.2078,2564.6,2564.1,0.698]
[1748088293600,15.346,2564.3,2564.2,2.09705]
[1748088293799,15.346,2564.3,2564.2,2.78905]
[1748088294304,32.897,2564.3,2564.2,2.78905]
[1748088294504,17.551,2564.3,2564.2,2.78905]
[1748088295299,0.77967,2564.5,2564.4,0.77969]
[1748088295492,35.04787,2564.5,2564.4,0.77969]
[1748088295695,1.3712,2564.5,2564.4,0.77969]
[1748088295897,18.9222,2564.5,2564.4,0.77969]
[1748088296201,17.551,2564.5,2564.4,0.77969]
[1748088296504,3.2078,2564.6,2564.5,0.77966]
[1748088296692,36.1028,2564.6,2564.5,0.77966]
[1748088296894,32.895,2564.6,2564.5,0.77966]
[1748088298004,0.00584431,2564.7,2564.6,0.77963]
[1748088298310,17.55584431,2564.7,2564.6,0.77963]
[1748088298906,17.55584431,2564.7,2564.6,2.10763]
[1748088299105,17.55584431,2564.7,2564.4,0.78551431]
[1748088299405,1.345,2564.6,2564.5,0.77966]
[1748088299607,1.345,2564.6,2564.5,2.18456]
[1748088299807,1.345,2564.6,2564.5,2.82326]
[1748088300207,2.12463,2564.6,2564.5,2.82326]
[1748088300508,2.12463,2564.6,2564.5,2.0436]
[1748088301210,0.77966,2564.5,2564.4,0.00584431]
[1748088301403,0.77975,2564.2,2564.1,0.85663013]
[1748088301599,17.549,2564.2,2564.1,1.63641013]
[1748088301905,0.669,2564.4,2564.3,0.77972]
[1748088302100,18.218,2564.4,2564.3,0.77972]
[1748088302301,19.6309,2564.4,2564.3,0.77972]
[1748088302501,20.41059,2564.4,2564.2,0.77973]
[1748088302806,0.77972,2564.3,2564.2,2.07313]
[1748088303005,20.4106,2564.4,2564.3,0.77972]
[1748088303812,15.3,2564.5,2564.4,0.77969]
[1748088304001,33.62866,2564.5,2564.4,0.77969]
[1748088304405,1.4129,2564.6,2564.4,1.9569]
[1748088304707,18.32866,2564.5,2564.4,1.9569]
[1748088305210,18.32866,2564.5,2564.4,2.73659]
[1748088305401,17.549,2564.5,2564.1,0.78560431]
[1748088305601,2.7096,2564.4,2564.1,0.78560431]
[1748088305804,0.77973,2564.3,2564.2,0.77974]
[1748088306005,2.10073,2564.3,2564.2,0.77974]
[1748088306299,1.321,2564.3,2564.2,0.77974]
[1748088306501,1.321,2564.3,2564.2,2.16964]
[1748088306802,1.321,2564.3,2564.2,3.01330057]
[1748088307208,0.7797,2564.4,2564.3,0.77972]
[1748088307408,0.7797,2564.4,2564.3,1.3899]
[1748088307609,2.1007,2564.4,2564.3,1.3899]
[1748088308010,2.1007,2564.4,2564.3,2.16962]
[1748088308309,18.87,2564.4,2564.3,2.16962]
[1748088308510,17.549,2564.4,2564.3,2.16962]
[1748088309010,3.2078,2564.6,2564.5,0.77966]
[1748088309200,20.7568,2564.6,2564.5,0.77966]
[1748088309399,17.549,2564.6,2564.5,0.85515626]
[1748088309597,17.549,2564.6,2564.5,2.86335626]
[1748088309804,16.08545431,2564.7,2564.6,0.77963]
[1748088310008,32.85484431,2564.7,2564.6,0.77963]
[1748088311509,0.00584431,2564.7,2564.6,0.77963]
[1748088311712,17.55384431,2564.7,2564.6,0.77963]
[1748088312103,0.00584431,2564.7,2564.6,0.77963]
[1748088313806,0.77963,2564.6,2564.5,0.85513626]
[1748088314013,0.77963,2564.6,2564.5,0.07549626]
[1748088314213,16.77853,2564.6,2564.5,0.07549626]
[1748088314414,19.98633,2564.6,2564.5,0.07549626]
[1748088315308,19.98633,2564.6,2564.2,1.14182549]
[1748088315309,19.2067,2564.6,2564.2,1.14182549]
[1748088315508,0.77972,2564.3,2564.2,1.14182549]
[1748088315911,32.845,2564.3,2564.2,1.14182549]
[1748088316117,32.845,2564.3,2564.2,1.92157549]
[1748088316315,32.845,2564.3,2564.2,0.77975]
[1748088316518,0.77971,2564.4,2564.3,0.77972]
[1748088316717,32.845,2564.4,2564.1,0.00584431]
[1748088316916,0.77972,2564.3,2564.1,0.78561431]
[1748088317410,1.46335,2564.2,2564.1,0.00584431]
[1748088318412,1.46335,2564.2,2564.1,0.78562431]
[1748088318714,1.46335,2564.2,2564.1,0.00584431]
[1748088319416,1.46335,2564.2,2564.1,0.78562431]
[1748088320018,1.46335,2564.2,2564.1,0.00584431]
[1748088320214,1.46335,2564.2,2564.1,0.78562431]
[1748088320911,18.2326,2564.2,2564.1,2.16372431]
[1748088321321,18.2326,2564.2,2564.1,0.78562431]
[1748088321524,0.6836,2564.2,2564.1,0.78562431]
[1748088321721,15.298,2564.4,2564.3,0.77972]
[1748088321916,32.847,2564.4,2564.2,0.77973]
[1748088322222,0.77972,2564.3,2564.2,0.77973]
[1748088322421,0.77975,2564.2,2564.1,0.78560431]
[1748088322723,0.77974,2564.3,2564.2,0.07549626]
[1748088323224,0.77974,2564.3,2564.2,0.85524626]
[1748088323424,0.77974,2564.3,2564.2,0.07549626]
[1748088326134,3.98754,2564.3,2564.2,0.07549626]
[1748088328733,3.2078,2564.3,2563.4,5.02112549]
[1748088329030,1.94952,2564.1,2563.4,7.07092549]
[1748088329230,0.77992,2563.7,2563.6,0.77992]
[1748088329436,0.77995,2563.6,2563.5,0.77995]
[1748088329629,16.75895,2563.6,2563.5,0.77995]
[1748088330030,0.77996,2563.5,2563.4,5.12961549]
[1748088330233,1.46526,2563.5,2563.4,5.12961549]
[1748088330439,1.46526,2563.5,2563.4,4.34962549]
[1748088330746,0.78005,2563.2,2563.1,1.9794]
[1748088330933,15.302,2563.2,2563.1,2.75948]
[1748088331238,16.08205,2563.2,2563.1,1.9794]
[1748088331734,16.08205,2563.2,2563.1,0.78008]
[1748088331933,16.08205,2563.2,2563.0,4.68499]
[1748088331934,16.08207,2563.2,2563.0,4.68499]
[1748088332232,0.00584431,2563.4,2563.1,1.3249]
[1748088332441,33.68703,2563.3,2563.2,0.78004]
[1748088332926,33.68703,2563.3,2563.2,0.78005]
[1748088333133,32.907,2563.3,2563.0,3.2078]
[1748088333445,0.78008,2563.1,2563.0,3.2078]
[1748088333649,0.78011,2563.0,2562.8,1.47306]
[1748088333943,15.358,2562.9,2562.8,1.47305]
[1748088334440,16.13815,2562.9,2562.8,0.6929]
[1748088334938,16.13816,2562.9,2562.8,0.78018]
[1748088335243,15.358,2562.9,2562.8,2.18198]
[1748088335538,17.553,2563.0,2562.9,0.78015]
[1748088335738,15.359,2563.3,2562.9,0.78015]
[1748088335739,6.31410278,2563.6,2563.3,0.78002]
[1748088335939,32.91984431,2563.4,2563.3,0.78002]
[1748088336132,0.00584431,2563.4,2563.3,0.78002]
[1748088336336,17.56084431,2563.4,2563.3,3.98782]
[1748088336737,0.00584431,2563.4,2563.3,3.98782]
[1748088336939,17.56084431,2563.4,2563.3,5.37852]
[1748088338242,0.00584431,2563.4,2563.3,5.37852]
[1748088338444,17.56084431,2563.4,2563.3,5.37852]
[1748088338636,17.55984431,2563.4,2563.3,5.37852]
[1748088339142,0.00584431,2563.4,2563.3,5.37852]
[1748088339442,17.55984431,2563.4,2563.3,5.37852]
[1748088341644,0.00584431,2563.4,2563.3,5.37852]
[1748088341835,39.314,2564.0,2563.5,1.94985]
[1748088342039,0.77976,2564.2,2563.6,6.48804]
[1748088342239,0.77976,2564.2,2564.0,0.77979]
[1748088342441,32.913,2564.1,2564.0,0.77979]
[1748088342838,0.77976,2564.2,2564.0,0.77979]
[1748088343045,3.21364431,2564.3,2564.0,0.77979]
[1748088343046,17.55984431,2564.3,2564.2,0.77975]
[1748088343240,0.00584431,2564.3,2564.2,0.77975]
[1748088343649,18.33956431,2564.3,2564.2,0.77975]
[1748088343946,17.55984431,2564.3,2564.2,0.77975]
[1748088344348,0.00584431,2564.3,2564.2,0.77975]
[1748088345141,0.00584431,2564.3,2564.1,0.77976]
[1748088345342,0.77977,2564.2,2564.1,0.6]
[1748088345542,0.77977,2564.2,2564.1,1.37978]
[1748088346041,0.78557431,2564.3,2564.1,0.77978]
[1748088346240,0.78557431,2564.3,2564.2,0.77975]
[1748088347143,0.78557431,2564.3,2564.1,0.77976]
[1748088347348,0.00584431,2564.3,2564.2,0.77975]
[1748088347845,18.33757431,2564.3,2564.1,0.77976]
[1748088348248,0.00584431,2564.3,2564.2,0.77975]
[1748088353549,0.00584431,2564.3,2564.2,2.11385]
[1748088355753,0.00584431,2564.3,2564.2,2.81945]
[1748088358951,18.5618,2564.8,2564.7,0.7796]
[1748088359153,36.89037,2564.8,2564.7,0.7796]
[1748088361054,0.7796,2564.7,2564.6,2.16282]
[1748088361256,2.1181,2564.7,2564.6,2.16282]
[1748088361649,1.3385,2564.7,2564.6,2.16282]
[1748088362158,1.3385,2564.7,2564.5,0.00584431]